fUSD/lending_fUSD_20240712
["ID","MTS","AMOUNT","RATE_DAILY","PERIOD"]
[331847464,1720793446250,-500.0,0.00013698,2]
[331847465,1720793446260,-500.0,0.00013698,2]
[331847466,1720793446270,-500.0,0.00013698,2]
[331847467,1720793446280,-500.0,0.00013698,2]
[331847468,1720793446290,-500.0,0.00013698,2]
[331847469,1720793446299,-500.0,0.00013698,2]
[331847470,1720793446308,-614.13359721,0.00013698,2]
[331847471,1720793446317,-500.0,0.00013698,2]
[331847472,1720793446327,-500.0,0.00013698,2]
[331847473,1720793446336,-1227.65,0.00013698,2]
[331847474,1720793446345,-500.0,0.00013698,2]
[331847475,1720793446354,-500.0,0.00013698,2]
[331847476,1720793446363,-694.29,0.00013698,2]
[331847477,1720793446372,-500.0,0.00013698,2]
[331847478,1720793446381,-1361.77,0.00013698,2]
[331847479,1720793446391,-582.53,0.00013698,2]
[331847480,1720793446400,-155.32911998,0.00013698,2]
[331847481,1720793446409,-500.0,0.00013698,2]
[331847482,1720793446418,-500.0,0.00013698,2]
[331847483,1720793446430,-737.18,0.00013698,2]
[331847484,1720793446439,-500.0,0.00013698,2]
[331847485,1720793446449,-614.16,0.00013698,2]
[331847486,1720793446458,-688.27,0.00013698,2]
[331847487,1720793446468,-500.0,0.00013698,2]
[331847488,1720793446634,-616.28,0.00013698,2]
[331847489,1720793446644,-1296.55,0.00013698,2]
[331847490,1720793446655,-500.0,0.00013698,2]
[331847491,1720793446665,-500.0,0.00013698,2]
[331847492,1720793446681,-500.0,0.00013698,2]
[331847493,1720793446690,-500.0,0.00013698,2]
[331847494,1720793446700,-500.0,0.00013698,2]
[331847495,1720793446710,-557.62,0.00013698,2]
[331847496,1720793446720,-617.52,0.00013698,2]
[331847497,1720793446729,-754.18,0.00013698,2]
[331847498,1720793446739,-500.0,0.00013698,2]
[331847499,1720793446750,-500.0,0.00013698,2]
[331847500,1720793446759,-500.0,0.00013698,2]
[331847501,1720793446769,-642.65,0.00013698,2]
[331847502,1720793446779,-500.0,0.00013698,2]
[331847503,1720793446788,-7325.65,0.00013698,2]
[331847504,1720793446798,-500.0,0.00013698,2]
[331847506,1720793446807,-500.0,0.00013698,2]
[331847508,1720793446816,-2284.54,0.00013698,2]
[331847510,1720793446826,-500.0,0.00013698,2]
[331847512,1720793446835,-500.0,0.00013698,2]
[331847514,1720793446844,-1347.25,0.00013698,2]
[331847516,1720793446854,-1170.07,0.00013698,2]
[331847517,1720793446863,-515.48,0.00013698,2]
[331847518,1720793446872,-200.0,0.00013699,2]
[331847519,1720793446882,-250.0,0.00013699,2]
[331847520,1720793446891,-2751.0,0.00013699,2]
[331847521,1720793446902,-200.0,0.00013699,2]
[331847522,1720793446911,-873.07,0.00013699,2]
[331847523,1720793446921,-164.37168205,0.00013699,2]
[331847524,1720793446935,-339.6,0.000137,2]
[331847525,1720793446944,-339.6,0.000137,2]
[331847526,1720793446953,-5000.0,0.00013719,2]
[331847527,1720793446962,-3271.13086808,0.00013719,2]
[331847528,1720793446972,-9376.21457302,0.00013736,2]
[331847529,1720793446993,-3406.78982211,0.00013736,2]
[331847530,1720793447002,-188.23245816,0.00013743,2]
[331847531,1720793447011,-1799.46993461,0.0001375,2]
[331847532,1720793450199,-1856.77464088,0.0001375,2]
[331847533,1720793450213,-1106.10866471,0.00013752,5]
[331847534,1720793450227,-500.0,0.00013752,2]
[331847535,1720793450240,-500.0,0.00013752,2]
[331847536,1720793450254,-500.0,0.00013752,2]
[331847537,1720793450268,-785.56,0.00013752,2]
[331847538,1720793450282,-2394.96,0.00013752,2]
[331847539,1720793450295,-614.72,0.00013752,2]
[331847540,1720793450308,-650.16,0.00013752,2]
[331847541,1720793450321,-500.0,0.00013752,2]
[331847542,1720793450342,-500.27,0.00013752,2]
[331847543,1720793450355,-500.0,0.00013752,2]
[331847544,1720793450369,-1048.37,0.00013752,2]
[331847545,1720793450382,-500.0,0.00013752,2]
[331847546,1720793450396,-581.63,0.00013752,2]
[331847547,1720793450409,-1353.66,0.00013752,2]
[331847548,1720793450423,-550.17,0.00013752,2]
[331847549,1720793450439,-592.17,0.00013752,2]
[331847550,1720793450452,-1431.99,0.00013752,2]
[331847551,1720793450471,-2000.0,0.00013753,2]
[331847552,1720793450484,-500.0,0.00013753,2]
[331847553,1720793450498,-200.0,0.00013753,2]
[331847554,1720793450511,-500.0,0.00013753,2]
[331847555,1720793450524,-500.0,0.00013753,2]
[331847556,1720793450538,-502.47,0.00013753,2]
[331847557,1720793450551,-500.0,0.00013753,2]
[331847558,1720793450565,-718.04,0.00013753,2]
[331847559,1720793450579,-500.0,0.00013753,2]
[331847560,1720793450593,-500.0,0.00013753,2]
[331847561,1720793450606,-500.0,0.00013753,2]
[331847562,1720793450619,-500.0,0.00013753,2]
[331847563,1720793450632,-500.0,0.00013753,2]
[331847564,1720793450646,-564.28,0.00013753,2]
[331847565,1720793450660,-500.0,0.00013753,2]
[331847566,1720793450679,-593.47,0.00013753,2]
[331847567,1720793450692,-500.0,0.00013753,2]
[331847568,1720793450707,-500.0,0.00013753,2]
[331847569,1720793450723,-500.0,0.00013753,2]
[331847570,1720793450738,-506.74,0.00013753,2]
[331847571,1720793450751,-500.0,0.00013753,2]
[331847572,1720793450764,-500.0,0.00013753,2]
[331847573,1720793450774,-500.0,0.00013753,2]
[331847574,1720793450783,-500.0,0.00013753,2]
[331847575,1720793450793,-863.45,0.00013753,2]
[331847576,1720793450802,-500.0,0.00013753,2]
[331847577,1720793450812,-500.0,0.00013753,2]
[331847578,1720793450822,-523.05,0.00013753,2]
[331847579,1720793450831,-500.0,0.00013753,2]
[331847580,1720793450841,-640.08,0.00013753,2]
[331847581,1720793450851,-500.0,0.00013753,2]
[331847582,1720793450860,-500.0,0.00013753,2]
[331847583,1720793450869,-500.0,0.00013753,2]
[331847584,1720793450879,-500.0,0.00013753,2]
[331847585,1720793450889,-500.0,0.00013753,2]
[331847586,1720793450899,-500.0,0.00013753,2]
[331847587,1720793450908,-500.0,0.00013753,2]
[331847588,1720793450918,-500.0,0.00013753,2]
[331847589,1720793450928,-500.0,0.00013753,2]
[331847590,1720793450938,-542.25,0.00013753,2]
[331847591,1720793450948,-517.33,0.00013753,2]
[331847592,1720793450958,-500.0,0.00013753,2]
[331847593,1720793450969,-500.0,0.00013753,2]
[331847594,1720793450978,-500.0,0.00013753,2]
[331847595,1720793450987,-638.96,0.00013753,2]
[331847596,1720793450997,-520.46,0.00013753,2]
[331847597,1720793451350,-500.0,0.00013753,2]
[331847598,1720793451370,-869.21,0.00013753,2]
[331847599,1720793451395,-641.61062421,0.00013753,2]
[331847600,1720793451417,-500.0,0.00013753,2]
[331847601,1720793451430,-500.0,0.00013753,2]
[331847602,1720793451439,-500.0,0.00013753,2]
[331847603,1720793451449,-500.0,0.00013753,2]
[331847604,1720793451459,-388.65171933,0.00013753,2]
[331847605,1720793451469,-500.0,0.00013753,2]
[331847606,1720793451478,-500.0,0.00013753,2]
[331847607,1720793451487,-659.64,0.00013753,2]
[331847608,1720793451497,-500.0,0.00013753,2]
[331847609,1720793451507,-742.1,0.00013753,2]
[331847610,1720793451517,-638.51,0.00013753,2]
[331847611,1720793451526,-500.0,0.00013753,2]
[331847612,1720793451536,-500.0,0.00013753,2]
[331847613,1720793451546,-500.0,0.00013753,2]
[331847614,1720793451555,-500.0,0.00013753,2]
[331847615,1720793451566,-500.0,0.00013753,2]
[331847616,1720793451576,-500.0,0.00013753,2]
[331847617,1720793451586,-500.0,0.00013753,2]
[331847618,1720793451596,-500.0,0.00013753,2]
[331847619,1720793451606,-500.0,0.00013753,2]
[331847620,1720793451615,-500.0,0.00013753,2]
[331847621,1720793451625,-500.0,0.00013753,2]
[331847622,1720793451635,-500.0,0.00013753,2]
[331847623,1720793451644,-500.0,0.00013753,2]
[331847624,1720793451653,-500.0,0.00013753,2]
[331847625,1720793451662,-500.0,0.00013753,2]
[331847626,1720793451676,-500.0,0.00013753,2]
[331847627,1720793451687,-500.0,0.00013753,2]
[331847628,1720793451697,-500.0,0.00013753,2]
[331847629,1720793451706,-500.0,0.00013753,2]
[331847630,1720793451717,-500.0,0.00013753,2]
[331847631,1720793451726,-500.0,0.00013753,2]
[331847632,1720793451736,-500.0,0.00013753,2]
[331847633,1720793451748,-500.0,0.00013753,2]
[331847634,1720793451757,-500.0,0.00013753,2]
[331847635,1720793451767,-500.0,0.00013753,2]
[331847636,1720793451776,-517.69,0.00013753,2]
[331847637,1720793451786,-500.0,0.00013753,2]
[331847638,1720793451796,-500.0,0.00013753,2]
[331847639,1720793451805,-446.24725413,0.00013753,2]
[331847640,1720793451815,-524.62,0.00013753,2]
[331847641,1720793451824,-620.56,0.00013753,2]
[331847642,1720793451834,-500.0,0.00013753,2]
[331847643,1720793451844,-500.0,0.00013753,2]
[331847644,1720793451853,-500.0,0.00013753,2]
[331847645,1720793451862,-500.0,0.00013753,2]
[331847646,1720793451871,-500.0,0.00013753,2]
[331847647,1720793451881,-505.84,0.00013753,2]
[331847648,1720793451890,-500.0,0.00013753,2]
[331847649,1720793451899,-500.19,0.00013753,2]
[331847650,1720793451908,-500.0,0.00013753,2]
[331847651,1720793451917,-500.0,0.00013753,2]
[331847652,1720793451927,-639.69,0.00013753,2]
[331847653,1720793451937,-500.0,0.00013753,2]
[331847654,1720793451946,-500.0,0.00013753,2]
[331847655,1720793451955,-500.0,0.00013753,2]
[331847656,1720793451965,-500.0,0.00013753,2]
[331847657,1720793451974,-500.0,0.00013753,2]
[331847658,1720793451983,-500.0,0.00013753,2]
[331847659,1720793451992,-500.0,0.00013753,2]
[331847660,1720793452002,-500.0,0.00013753,2]
[331847661,1720793452011,-2000.0,0.00013753,2]
[331847662,1720793452020,-500.0,0.00013753,2]
[331847663,1720793452029,-500.0,0.00013753,2]
[331847664,1720793452039,-500.0,0.00013753,2]
[331847665,1720793452048,-430.33868276,0.00013753,2]
[331847666,1720793452057,-344.71559981,0.00013753,2]
[331847667,1720793452066,-200.0,0.00013753,2]
[331847668,1720793452076,-500.0,0.00013753,2]
[331847669,1720793452085,-500.0,0.00013753,2]
[331847670,1720793452094,-500.0,0.00013753,2]
[331847671,1720793452104,-500.0,0.00013753,2]
[331847672,1720793452113,-500.0,0.00013753,2]
[331847673,1720793452123,-499.21166855,0.00013753,2]
[331847674,1720793452132,-500.0,0.00013753,2]
[331847675,1720793452141,-500.0,0.00013753,2]
[331847676,1720793452151,-500.0,0.00013753,2]
[331847677,1720793452160,-500.0,0.00013753,2]
[331847678,1720793452169,-572.43,0.00013753,2]
[331847679,1720793452178,-500.0,0.00013753,2]
[331847680,1720793452188,-500.0,0.00013753,2]
[331847681,1720793452198,-500.0,0.00013753,2]
[331847682,1720793452207,-500.0,0.00013753,2]
[331847683,1720793452216,-585.29,0.00013753,2]
[331847684,1720793452225,-588.59,0.00013753,2]
[331847685,1720793452235,-500.0,0.00013753,2]
[331847686,1720793452244,-500.0,0.00013753,2]
[331847687,1720793452253,-753.27,0.00013753,2]
[331847688,1720793452262,-500.0,0.00013753,2]
[331847689,1720793452273,-512.35,0.00013753,2]
[331847690,1720793452282,-312.51065247,0.00013753,2]
[331847691,1720793452291,-500.0,0.00013753,2]
[331847692,1720793452300,-500.0,0.00013753,2]
[331847693,1720793452309,-500.0,0.00013753,2]
[331847694,1720793452319,-572.13,0.00013753,2]
[331847695,1720793452329,-500.0,0.00013753,2]
[331847696,1720793452338,-500.0,0.00013753,2]
[331847697,1720793452348,-500.0,0.00013753,2]
[331847698,1720793452357,-500.0,0.00013753,2]
[331847699,1720793452366,-853.09,0.00013753,2]
[331847700,1720793452375,-500.0,0.00013753,2]
[331847701,1720793452385,-500.0,0.00013753,2]
[331847702,1720793452394,-500.0,0.00013753,2]
[331847703,1720793452403,-501.42,0.00013753,2]
[331847704,1720793452412,-500.0,0.00013753,2]
[331847705,1720793452421,-613.54,0.00013753,2]
[331847706,1720793452431,-500.0,0.00013753,2]
[331847707,1720793452440,-500.0,0.00013753,2]
[331847708,1720793452449,-500.0,0.00013753,2]
[331847709,1720793452459,-500.0,0.00013753,2]
[331847710,1720793452468,-1062.15,0.00013753,2]
[331847711,1720793452477,-500.0,0.00013753,2]
[331847712,1720793452487,-500.0,0.00013753,2]
[331847713,1720793452496,-500.0,0.00013753,2]
[331847714,1720793452505,-192.30411805,0.00013753,2]
[331847715,1720793452514,-1061.26,0.00013753,2]
[331847716,1720793452524,-587.45,0.00013753,2]
[331847717,1720793452534,-672.15,0.00013753,2]
[331847718,1720793452544,-500.0,0.00013753,2]
[331847719,1720793452553,-500.0,0.00013753,2]
[331847720,1720793452562,-899.54,0.00013753,2]
[331847721,1720793452572,-820.61,0.00013753,2]
[331847722,1720793452581,-912.13,0.00013753,2]
[331847723,1720793452590,-500.0,0.00013753,2]
[331847724,1720793452599,-500.0,0.00013753,2]
[331847725,1720793452608,-713.2,0.00013753,2]
[331847726,1720793452617,-723.76,0.00013753,2]
[331847727,1720793452626,-500.0,0.00013753,2]
[331847728,1720793452635,-500.0,0.00013753,2]
[331847729,1720793452645,-500.0,0.00013753,2]
[331847730,1720793452654,-500.0,0.00013753,2]
[331847731,1720793452663,-500.0,0.00013753,2]
[331847732,1720793452676,-500.0,0.00013753,2]
[331847733,1720793452686,-512.45,0.00013753,2]
[331847734,1720793452695,-607.34,0.00013753,2]
[331847735,1720793452704,-500.0,0.00013753,2]
[331847736,1720793452714,-500.0,0.00013753,2]
[331847737,1720793452723,-500.0,0.00013753,2]
[331847738,1720793452733,-500.0,0.00013753,2]
[331847739,1720793452743,-500.0,0.00013753,2]
[331847740,1720793452753,-500.0,0.00013753,2]
[331847741,1720793452762,-500.0,0.00013753,2]
[331847742,1720793452772,-500.0,0.00013753,2]
[331847743,1720793452781,-500.0,0.00013753,2]
[331847744,1720793452790,-700.37,0.00013753,2]
[331847745,1720793452799,-500.0,0.00013753,2]
[331847746,1720793452808,-623.5,0.00013753,2]
[331847747,1720793452818,-237.1,0.00013753,2]
[331847748,1720793452827,-500.0,0.00013753,2]
[331847749,1720793452837,-621.57,0.00013753,2]
[331847750,1720793452846,-500.0,0.00013753,2]
[331847751,1720793452855,-500.0,0.00013753,2]
[331847752,1720793452864,-500.0,0.00013753,2]
[331847753,1720793452874,-500.0,0.00013753,2]
[331847754,1720793452884,-500.0,0.00013753,2]
[331847755,1720793452893,-500.0,0.00013753,2]
[331847756,1720793452903,-500.0,0.00013753,2]
[331847757,1720793452912,-500.0,0.00013753,2]
[331847758,1720793452921,-547.37,0.00013753,2]
[331847759,1720793452931,-500.0,0.00013753,2]
[331847760,1720793452940,-919.09,0.00013753,2]
[331847761,1720793452950,-500.0,0.00013753,2]
[331847762,1720793452959,-592.12,0.00013753,2]
[331847763,1720793452968,-819.71,0.00013753,2]
[331847764,1720793452978,-500.0,0.00013753,2]
[331847765,1720793452987,-500.0,0.00013753,2]
[331847766,1720793452996,-794.2,0.00013753,2]
[331847767,1720793453007,-500.0,0.00013753,2]
[331847768,1720793453019,-555.68,0.00013753,2]
[331847769,1720793453029,-500.0,0.00013753,2]
[331847770,1720793453040,-691.78,0.00013753,2]
[331847771,1720793453050,-881.62,0.00013753,2]
[331847772,1720793453062,-722.32,0.00013753,2]
[331847773,1720793453072,-500.0,0.00013753,2]
[331847774,1720793453082,-500.0,0.00013753,2]
[331847775,1720793453092,-500.0,0.00013753,2]
[331847776,1720793453102,-500.0,0.00013753,2]
[331847777,1720793453112,-973.92,0.00013753,2]
[331847778,1720793453123,-916.53,0.00013753,2]
[331847779,1720793453134,-500.0,0.00013753,2]
[331847780,1720793453143,-727.51,0.00013753,2]
[331847781,1720793453152,-622.15,0.00013753,2]
[331847782,1720793453163,-550.61,0.00013753,2]
[331847783,1720793453172,-500.0,0.00013753,2]
[331847784,1720793453182,-500.0,0.00013753,2]
[331847785,1720793453192,-500.0,0.00013753,2]
[331847786,1720793453201,-500.0,0.00013753,2]
[331847787,1720793453211,-500.0,0.00013753,2]
[331847788,1720793453220,-500.0,0.00013753,2]
[331847789,1720793453229,-500.0,0.00013753,2]
[331847790,1720793453239,-500.0,0.00013753,2]
[331847791,1720793453249,-649.5,0.00013753,2]
[331847792,1720793453260,-500.0,0.00013753,2]
[331847793,1720793453269,-500.0,0.00013753,2]
[331847794,1720793453278,-500.0,0.00013753,2]
[331847795,1720793453287,-500.0,0.00013753,2]
[331847796,1720793453296,-500.0,0.00013753,2]
[331847797,1720793453306,-615.2,0.00013753,2]
[331847798,1720793453315,-500.0,0.00013753,2]
[331847799,1720793453325,-551.78,0.00013753,2]
[331847800,1720793453335,-690.31,0.00013753,2]
[331847801,1720793453345,-500.0,0.00013753,2]
[331847802,1720793453354,-526.16,0.00013753,2]
[331847803,1720793453363,-500.0,0.00013753,2]
[331847804,1720793453373,-500.0,0.00013753,2]
[331847805,1720793453383,-441.8,0.00013753,2]
[331847806,1720793453394,-500.0,0.00013753,2]
[331847807,1720793453404,-875.99,0.00013753,2]
[331847808,1720793453413,-222.42307317,0.00013753,2]
[331847809,1720793453422,-696.44,0.00013753,2]
[331847810,1720793453432,-205.61003217,0.00013753,2]
[331847811,1720793453441,-996.56,0.00013753,2]
[331847812,1720793453450,-500.0,0.00013753,2]
[331847813,1720793453459,-500.0,0.00013753,2]
[331847814,1720793453468,-517.04,0.00013753,2]
[331847815,1720793453478,-500.0,0.00013753,2]
[331847816,1720793453487,-500.0,0.00013753,2]
[331847817,1720793453496,-500.0,0.00013753,2]
[331847818,1720793453505,-738.79,0.00013753,2]
[331847819,1720793453514,-963.73,0.00013753,2]
[331847820,1720793453523,-778.45,0.00013753,2]
[331847821,1720793453532,-500.0,0.00013753,2]
[331847822,1720793453542,-759.11,0.00013753,2]
[331847823,1720793453551,-500.0,0.00013753,2]
[331847824,1720793453560,-359.61179073,0.00013753,2]
[331847825,1720793453569,-500.0,0.00013753,2]
[331847826,1720793453578,-587.64,0.00013753,2]
[331847827,1720793453587,-500.0,0.00013753,2]
[331847828,1720793453596,-500.0,0.00013753,2]
[331847829,1720793453605,-1019.93,0.00013753,2]
[331847830,1720793453614,-1169.3,0.00013753,2]
[331847831,1720793453623,-500.0,0.00013753,2]
[331847832,1720793453632,-692.23,0.00013753,2]
[331847833,1720793453641,-500.0,0.00013753,2]
[331847834,1720793453650,-500.0,0.00013753,2]
[331847835,1720793453659,-534.49,0.00013753,2]
[331847836,1720793453672,-619.09,0.00013753,2]
[331847837,1720793453681,-1269.32,0.00013753,2]
[331847838,1720793453690,-500.0,0.00013753,2]
[331847839,1720793453699,-500.0,0.00013753,2]
[331847840,1720793453708,-940.69,0.00013753,2]
[331847841,1720793453718,-728.55,0.00013753,2]
[331847842,1720793453727,-750.46,0.00013753,2]
[331847843,1720793453736,-500.0,0.00013753,2]
[331847844,1720793453747,-500.0,0.00013753,2]
[331847845,1720793453756,-500.0,0.00013753,2]
[331847846,1720793453766,-500.0,0.00013753,2]
[331847847,1720793453775,-500.0,0.00013753,2]
[331847848,1720793453783,-854.01,0.00013753,2]
[331847849,1720793453793,-500.0,0.00013753,2]
[331847850,1720793453802,-394.23621726,0.00013753,2]
[331847851,1720793453811,-707.45,0.00013753,2]
[331847852,1720793453819,-792.75,0.00013753,2]
[331847853,1720793453828,-777.63,0.00013753,2]
[331847854,1720793453837,-500.0,0.00013753,2]
[331847855,1720793453846,-500.0,0.00013753,2]
[331847856,1720793453855,-500.0,0.00013753,2]
[331847857,1720793453864,-500.0,0.00013753,2]
[331847858,1720793453873,-909.79,0.00013753,2]
[331847859,1720793453882,-500.0,0.00013753,2]
[331847860,1720793453891,-500.0,0.00013753,2]
[331847861,1720793453900,-500.0,0.00013753,2]
[331847862,1720793453910,-500.0,0.00013753,2]
[331847863,1720793453919,-500.0,0.00013753,2]
[331847864,1720793453928,-1159.7,0.00013753,2]
[331847865,1720793453938,-500.0,0.00013753,2]
[331847866,1720793453948,-500.0,0.00013753,2]
[331847867,1720793453957,-1015.88,0.00013753,2]
[331847868,1720793453966,-500.0,0.00013753,2]
[331847869,1720793453975,-500.0,0.00013753,2]
[331847870,1720793453985,-596.98124274,0.00013753,2]
[331847871,1720793453994,-500.0,0.00013753,2]
[331847872,1720793454003,-500.0,0.00013753,2]
[331847873,1720793454012,-684.89,0.00013753,2]
[331847874,1720793454021,-883.72,0.00013753,2]
[331847875,1720793454030,-500.0,0.00013753,2]
[331847876,1720793454040,-500.0,0.00013753,2]
[331847877,1720793454049,-500.0,0.00013753,2]
[331847878,1720793454059,-500.0,0.00013753,2]
[331847879,1720793454068,-688.72,0.00013753,2]
[331847880,1720793454077,-737.69,0.00013753,2]
[331847881,1720793454086,-500.0,0.00013753,2]
[331847882,1720793454095,-500.0,0.00013753,2]
[331847883,1720793454105,-500.0,0.00013753,2]
[331847884,1720793454114,-500.0,0.00013753,2]
[331847885,1720793454123,-500.0,0.00013753,2]
[331847886,1720793454132,-500.0,0.00013753,2]
[331847887,1720793454141,-500.0,0.00013753,2]
[331847888,1720793454151,-1330.99,0.00013753,2]
[331847889,1720793454160,-500.0,0.00013753,2]
[331847890,1720793454170,-500.0,0.00013753,2]
[331847891,1720793454179,-500.0,0.00013753,2]
[331847892,1720793454189,-467.93,0.00013753,2]
[331847893,1720793454198,-500.0,0.00013753,2]
[331847894,1720793454207,-500.0,0.00013753,2]
[331847895,1720793454216,-500.0,0.00013753,2]
[331847896,1720793454226,-500.0,0.00013753,2]
[331847897,1720793454235,-500.0,0.00013753,2]
[331847898,1720793454244,-500.0,0.00013753,2]
[331847899,1720793454253,-500.0,0.00013753,2]
[331847900,1720793454263,-500.0,0.00013753,2]
[331847901,1720793454272,-500.0,0.00013753,2]
[331847902,1720793454281,-500.0,0.00013753,2]
[331847903,1720793454290,-500.0,0.00013753,2]
[331847904,1720793454299,-500.0,0.00013753,2]
[331847905,1720793454308,-500.0,0.00013753,2]
[331847906,1720793454317,-809.03,0.00013753,2]
[331847907,1720793454327,-1429.49,0.00013753,2]
[331847908,1720793454336,-785.83,0.00013753,2]
[331847909,1720793454345,-500.0,0.00013753,2]
[331847910,1720793454355,-500.0,0.00013753,2]
[331847911,1720793454364,-500.0,0.00013753,2]
[331847912,1720793454374,-500.0,0.00013753,2]
[331847913,1720793454384,-737.06,0.00013753,2]
[331847914,1720793454395,-500.0,0.00013753,2]
[331847915,1720793454407,-500.0,0.00013753,2]
[331847916,1720793454416,-500.0,0.00013753,2]
[331847917,1720793454427,-500.0,0.00013753,2]
[331847918,1720793454440,-500.0,0.00013753,2]
[331847919,1720793454449,-500.0,0.00013753,2]
[331847920,1720793454461,-500.0,0.00013753,2]
[331847921,1720793454470,-553.94,0.00013753,2]
[331847922,1720793454480,-500.0,0.00013753,2]
[331847923,1720793454489,-1077.54,0.00013753,2]
[331847924,1720793454499,-987.35,0.00013753,2]
[331847925,1720793454508,-500.0,0.00013753,2]
[331847926,1720793454517,-580.61,0.00013753,2]
[331847927,1720793454527,-500.0,0.00013753,2]
[331847928,1720793454536,-500.0,0.00013753,2]
[331847929,1720793454546,-639.69,0.00013753,2]
[331847930,1720793454556,-500.0,0.00013753,2]
[331847931,1720793454565,-595.97,0.00013753,2]
[331847932,1720793454575,-500.0,0.00013753,2]
[331847933,1720793454584,-500.0,0.00013753,2]
[331847934,1720793454593,-500.0,0.00013753,2]
[331847935,1720793454603,-500.0,0.00013753,2]
[331847936,1720793454612,-500.0,0.00013753,2]
[331847937,1720793454621,-500.0,0.00013753,2]
[331847938,1720793454631,-500.0,0.00013753,2]
[331847939,1720793454640,-500.0,0.00013753,2]
[331847940,1720793454650,-500.0,0.00013753,2]
[331847941,1720793454660,-1294.22,0.00013753,2]
[331847942,1720793454673,-1175.85,0.00013753,2]
[331847943,1720793454683,-500.0,0.00013753,2]
[331847944,1720793454692,-929.24,0.00013753,2]
[331847945,1720793454702,-500.0,0.00013753,2]
[331847946,1720793454713,-500.0,0.00013753,2]
[331847947,1720793454723,-500.0,0.00013753,2]
[331847948,1720793454732,-500.0,0.00013753,2]
[331847949,1720793454742,-1237.33,0.00013753,2]
[331847950,1720793454752,-500.0,0.00013753,2]
[331847951,1720793454761,-500.0,0.00013753,2]
[331847952,1720793454771,-800.15,0.00013753,2]
[331847953,1720793454781,-500.0,0.00013753,2]
[331847954,1720793454790,-500.0,0.00013753,2]
[331847955,1720793454799,-853.62,0.00013753,2]
[331847956,1720793454808,-512.45,0.00013753,2]
[331847957,1720793454818,-500.0,0.00013753,2]
[331847958,1720793454827,-1578.05,0.00013753,2]
[331847959,1720793454836,-636.52489788,0.00013753,2]
[331847960,1720793454845,-500.0,0.00013753,2]
[331847961,1720793454854,-500.0,0.00013753,2]
[331847962,1720793455037,-500.0,0.00013753,2]
[331847963,1720793455047,-531.45,0.00013753,2]
[331847964,1720793455057,-570.56,0.00013753,2]
[331847965,1720793455067,-302.05957,0.00013753,2]
[331847966,1720793455076,-635.33,0.00013753,2]
[331847967,1720793455086,-707.52,0.00013753,2]
[331847968,1720793455095,-500.0,0.00013753,2]
[331847969,1720793455104,-1226.02,0.00013753,2]